[Event "Live Chess"]
[Site "Chess.com"]
[Date "2023.05.21"]
[Round "-"]
[White "JackRudd"]
[Black "The_Straightforward_Rook"]
[Result "1-0"]
[WhiteElo "2488"]
[BlackElo "1986"]
[TimeControl "300"]
[EndTime "5:40:29 PDT"]
[Termination "JackRudd won on time"]

1. d4 {[%clk 0:04:59.1]} 1... Nf6 {[%clk 0:04:58.1]} 2. c4 {[%clk 0:04:58.1]}
2... e6 {[%clk 0:04:56.5]} 3. Nc3 {[%clk 0:04:55.5]} 3... Bb4 {[%clk 0:04:55.9]}
4. f3 {[%clk 0:04:54.1]} 4... c5 {[%clk 0:04:54.4]} 5. d5 {[%clk 0:04:52.8]}
5... b5 {[%clk 0:04:53.5]} 6. e4 {[%clk 0:04:50.2]} 6... d6 {[%clk 0:04:52.6]}
7. dxe6 {[%clk 0:04:45.2]} 7... Bxe6 {[%clk 0:04:48.9]} 8. cxb5 {[%clk
0:04:44.1]} 8... O-O {[%clk 0:04:44.8]} 9. Ne2 {[%clk 0:04:41.4]} 9... d5 {[%clk
0:04:37.1]} 10. Bd2 {[%clk 0:04:36.7]} 10... d4 {[%clk 0:04:32.7]} 11. Nb1
{[%clk 0:04:35.3]} 11... Re8 {[%clk 0:04:13.1]} 12. Nf4 {[%clk 0:04:29.2]} 12...
Qb6 {[%clk 0:04:00.7]} 13. Bxb4 {[%clk 0:04:23.3]} 13... cxb4 {[%clk 0:03:52.9]}
14. Nxe6 {[%clk 0:04:21.8]} 14... Rxe6 {[%clk 0:03:50.6]} 15. Bd3 {[%clk
0:04:20.4]} 15... Nd5 {[%clk 0:03:45.2]} 16. O-O {[%clk 0:04:18.1]} 16... Ne3
{[%clk 0:03:44]} 17. Qc1 {[%clk 0:04:14.8]} 17... Nd7 {[%clk 0:03:34.8]} 18. Rf2
{[%clk 0:04:10.5]} 18... Nc5 {[%clk 0:03:33.3]} 19. Bc4 {[%clk 0:04:03.3]} 19...
Rg6 {[%clk 0:03:29.6]} 20. Nd2 {[%clk 0:04:02]} 20... h5 {[%clk 0:03:16.4]} 21.
Nf1 {[%clk 0:03:59.5]} 21... Ne6 {[%clk 0:02:38.6]} 22. Bxe6 {[%clk 0:03:53.8]}
22... fxe6 {[%clk 0:02:36.5]} 23. Nxe3 {[%clk 0:03:52.9]} 23... dxe3 {[%clk
0:02:35.9]} 24. Re2 {[%clk 0:03:52.2]} 24... Qxb5 {[%clk 0:02:30]} 25. Qxe3
{[%clk 0:03:50.8]} 25... Rf8 {[%clk 0:02:24.3]} 26. b3 {[%clk 0:03:48]} 26... h4
{[%clk 0:02:21.6]} 27. h3 {[%clk 0:03:46.4]} 27... Rg3 {[%clk 0:02:16.8]} 28.
Rf1 {[%clk 0:03:43.3]} 28... Rf6 {[%clk 0:02:11.9]} 29. Rc2 {[%clk 0:03:35.9]}
29... Rfg6 {[%clk 0:02:09.6]} 30. Rd1 {[%clk 0:03:27.4]} 30... Kh7 {[%clk
0:01:51.9]} 31. Kh2 {[%clk 0:03:23.9]} 31... Qe5 {[%clk 0:01:47.5]} 32. Kh1
{[%clk 0:03:20.5]} 32... Qf6 {[%clk 0:01:08.3]} 33. e5 {[%clk 0:03:06.6]} 33...
Qf5 {[%clk 0:01:05]} 34. Re2 {[%clk 0:02:56.8]} 34... a5 {[%clk 0:00:55.6]} 35.
Qe4 {[%clk 0:02:53.4]} 35... Qxe4 {[%clk 0:00:47.7]} 36. Rxe4 {[%clk 0:02:52.1]}
36... Rxg2 {[%clk 0:00:45.1]} 37. Rxh4+ {[%clk 0:02:50.1]} 37... Kg8 {[%clk
0:00:45]} 38. Rg4 {[%clk 0:02:27.3]} 38... R6xg4 {[%clk 0:00:42.7]} 39. hxg4
{[%clk 0:02:25.9]} 39... Rxa2 {[%clk 0:00:42.5]} 40. Rd6 {[%clk 0:02:21.4]}
40... Kf7 {[%clk 0:00:41.4]} 41. Kg1 {[%clk 0:02:18.8]} 41... Rb2 {[%clk
0:00:39.4]} 42. Rd3 {[%clk 0:02:17.9]} 42... Re2 {[%clk 0:00:35.7]} 43. f4
{[%clk 0:02:15.4]} 43... Re4 {[%clk 0:00:34.7]} 44. Rf3 {[%clk 0:02:13.9]} 44...
Ke7 {[%clk 0:00:31.7]} 45. Kf2 {[%clk 0:02:12.7]} 45... g5 {[%clk 0:00:30.3]}
46. fxg5 {[%clk 0:02:07.8]} 46... Rxg4 {[%clk 0:00:25.2]} 47. Rh3 {[%clk
0:01:57.4]} 47... Rxg5 {[%clk 0:00:22.5]} 48. Rh7+ {[%clk 0:01:56.2]} 48... Kd8
{[%clk 0:00:22]} 49. Ra7 {[%clk 0:01:54.9]} 49... Rxe5 {[%clk 0:00:20.6]} 50.
Kf3 {[%clk 0:01:54.3]} 50... Rc5 {[%clk 0:00:19]} 51. Ke4 {[%clk 0:01:52.9]}
51... Rc3 {[%clk 0:00:17.1]} 52. Rxa5 {[%clk 0:01:52]} 52... Rxb3 {[%clk
0:00:16.4]} 53. Ra7 {[%clk 0:01:51.1]} 53... Rc3 {[%clk 0:00:15.2]} 54. Kd4
{[%clk 0:01:49.8]} 54... Rc7 {[%clk 0:00:14.7]} 55. Ra8+ {[%clk 0:01:48]} 55...
Kd7 {[%clk 0:00:14.1]} 56. Rb8 {[%clk 0:01:47.2]} 56... Kc6 {[%clk 0:00:13.7]}
57. Rxb4 {[%clk 0:01:46.1]} 57... Rd7+ {[%clk 0:00:13.6]} 58. Ke5 {[%clk
0:01:45.2]} 58... Rd5+ {[%clk 0:00:13]} 59. Kxe6 {[%clk 0:01:44.6]} 59... Rd6+
{[%clk 0:00:12.9]} 60. Ke5 {[%clk 0:01:43.7]} 60... Rd5+ {[%clk 0:00:12.8]} 61.
Ke4 {[%clk 0:01:43]} 61... Rd6 {[%clk 0:00:12.7]} 62. Rc4+ {[%clk 0:01:41.7]}
62... Kd7 {[%clk 0:00:12.3]} 63. Rc1 {[%clk 0:01:40.4]} 63... Rc6 {[%clk
0:00:11.9]} 64. Rh1 {[%clk 0:01:36.8]} 64... Rd6 {[%clk 0:00:11.8]} 65. Ke5
{[%clk 0:01:35.7]} 65... Re6+ {[%clk 0:00:11.7]} 66. Kd5 {[%clk 0:01:34.9]}
66... Re7 {[%clk 0:00:10.9]} 67. Rh6 {[%clk 0:01:33.2]} 67... Rf7 {[%clk
0:00:10.5]} 68. Ra6 {[%clk 0:01:31.7]} 68... Re7 {[%clk 0:00:10.4]} 69. Ra8
{[%clk 0:01:29.6]} 69... Kc7 {[%clk 0:00:09.6]} 70. Kc5 {[%clk 0:01:27]} 70...
Rd7 {[%clk 0:00:09.3]} 71. Ra6 {[%clk 0:01:25.3]} 71... Re7 {[%clk 0:00:09]} 72.
Ra7+ {[%clk 0:01:24.3]} 72... Kd8 {[%clk 0:00:07.9]} 73. Ra8+ {[%clk 0:01:23.3]}
73... Kd7 {[%clk 0:00:07.8]} 74. Ra7+ {[%clk 0:01:22.5]} 74... Kd8 {[%clk
0:00:07.7]} 75. Ra6 {[%clk 0:01:21.3]} 75... Kd7 {[%clk 0:00:07.6]} 76. Rg6
{[%clk 0:01:20.2]} 76... Ke8 {[%clk 0:00:07.5]} 77. Rg8+ {[%clk 0:01:19.2]}
77... Kd7 {[%clk 0:00:07.4]} 78. Rb8 {[%clk 0:01:18.3]} 78... Kc7 {[%clk
0:00:07.1]} 79. Rb3 {[%clk 0:01:16.8]} 79... Kd7 {[%clk 0:00:07]} 80. Kd5 {[%clk
0:01:15.8]} 80... Ke8 {[%clk 0:00:06.9]} 81. Kd6 {[%clk 0:01:14.8]} 81... Rd7+
{[%clk 0:00:06.8]} 82. Ke6 {[%clk 0:01:14]} 82... Re7+ {[%clk 0:00:06.7]} 83.
Kf6 {[%clk 0:01:13.4]} 83... Rf7+ {[%clk 0:00:06.2]} 84. Kg6 {[%clk 0:01:12.6]}
84... Re7 {[%clk 0:00:06.1]} 85. Rd3 {[%clk 0:01:11]} 85... Rd7 {[%clk
0:00:05.3]} 86. Rf3 {[%clk 0:01:09.9]} 86... Re7 {[%clk 0:00:05.2]} 87. Kg5
{[%clk 0:01:08.3]} 87... Kd7 {[%clk 0:00:05.1]} 88. Rd3+ {[%clk 0:01:07]} 88...
Ke8 {[%clk 0:00:03.6]} 89. Kg6 {[%clk 0:01:05.6]} 89... Rd7 {[%clk 0:00:02.7]}
90. Rb3 {[%clk 0:01:04]} 90... Re7 {[%clk 0:00:02.6]} 91. Kf6 {[%clk 0:01:03.1]}
91... Kd7 {[%clk 0:00:02.5]} 92. Rb7+ {[%clk 0:01:01.5]} 92... Kd6 {[%clk
0:00:01.4]} 93. Rxe7 {[%clk 0:01:00]} 1-0

[Event "Live Chess"]
[Site "Chess.com"]
[Date "2023.05.21"]
[Round "-"]
[White "CheckThis4"]
[Black "Tiltador"]
[Result "1-0"]
[WhiteElo "2515"]
[BlackElo "804"]
[TimeControl "300"]
[EndTime "5:40:30 PDT"]
[Termination "CheckThis4 won by checkmate"]

1. d4 {[%clk 0:04:58.5]} 1... d5 {[%clk 0:04:56.6]} 2. Nc3 {[%clk 0:04:58.4]}
2... e6 {[%clk 0:04:55.4]} 3. e4 {[%clk 0:04:57.7]} 3... c6 {[%clk 0:04:54.3]}
4. Bd3 {[%clk 0:04:53.9]} 4... Nf6 {[%clk 0:04:52.9]} 5. e5 {[%clk 0:04:53]}
5... Nfd7 {[%clk 0:04:50.6]} 6. Nce2 {[%clk 0:04:51.3]} 6... Bb4+ {[%clk
0:04:48.4]} 7. c3 {[%clk 0:04:50.2]} 7... Be7 {[%clk 0:04:46.2]} 8. Nf4 {[%clk
0:04:49.6]} 8... O-O {[%clk 0:04:43]} 9. Qg4 {[%clk 0:04:46.9]} 9... g6 {[%clk
0:04:38.1]} 10. Nf3 {[%clk 0:04:45.4]} 10... Nb6 {[%clk 0:04:33.1]} 11. h4
{[%clk 0:04:43.5]} 11... Nc4 {[%clk 0:04:31.9]} 12. h5 {[%clk 0:04:41.6]} 12...
Na6 {[%clk 0:04:15.5]} 13. hxg6 {[%clk 0:04:39.2]} 13... fxg6 {[%clk 0:04:14.2]}
14. Nxg6 {[%clk 0:04:38.3]} 14... Rf7 {[%clk 0:04:07.2]} 15. Nxe7+ {[%clk
0:04:34.8]} 15... Kf8 {[%clk 0:03:57.7]} 16. Bh6+ {[%clk 0:04:32.2]} 16... Ke8
{[%clk 0:03:54.6]} 17. Qg8+ {[%clk 0:04:29.5]} 17... Kxe7 {[%clk 0:03:50.4]} 18.
Bg5+ {[%clk 0:04:27.8]} 18... Kd7 {[%clk 0:03:43.9]} 19. Qxd8# {[%clk
0:04:26.3]} 1-0

[Event "Live Chess"]
[Site "Chess.com"]
[Date "2023.05.21"]
[Round "-"]
[White "garyjc"]
[Black "YrrriKharkiv"]
[Result "0-1"]
[WhiteElo "1040"]
[BlackElo "2072"]
[TimeControl "300"]
[EndTime "5:40:37 PDT"]
[Termination "YrrriKharkiv won by resignation"]

1. e4 {[%clk 0:04:57.7]} 1... Nf6 {[%clk 0:04:59.5]} 2. Nc3 {[%clk 0:04:56]}
2... d5 {[%clk 0:04:58]} 3. e5 {[%clk 0:04:53.1]} 3... Nfd7 {[%clk 0:04:57.2]}
4. Nf3 {[%clk 0:04:47.9]} 4... e6 {[%clk 0:04:53]} 5. d4 {[%clk 0:04:37.1]} 5...
c5 {[%clk 0:04:52.2]} 6. Bb5 {[%clk 0:04:14.4]} 6... Nc6 {[%clk 0:04:48.8]} 7.
Bxc6 {[%clk 0:03:57.1]} 7... bxc6 {[%clk 0:04:45.9]} 8. O-O {[%clk 0:03:50.3]}
8... cxd4 {[%clk 0:04:44.6]} 9. Nxd4 {[%clk 0:03:48.6]} 9... Qc7 {[%clk
0:04:40.9]} 10. Re1 {[%clk 0:03:45.4]} 10... Nxe5 {[%clk 0:04:37.6]} 11. Bf4
{[%clk 0:03:26.6]} 11... Bd6 {[%clk 0:04:36.6]} 12. Bxe5 {[%clk 0:03:07.6]}
12... Bxe5 {[%clk 0:04:33.2]} 13. h3 {[%clk 0:03:05.7]} 13... Rb8 {[%clk
0:04:24.8]} 14. Qh5 {[%clk 0:02:53.9]} 14... Bxd4 {[%clk 0:04:18.3]} 0-1

[Event "Live Chess"]
[Site "Chess.com"]
[Date "2023.05.21"]
[Round "-"]
[White "HoarseyHorsey"]
[Black "Ian-Morley"]
[Result "1-0"]
[WhiteElo "1468"]
[BlackElo "1050"]
[TimeControl "300"]
[EndTime "5:40:57 PDT"]
[Termination "HoarseyHorsey won by resignation"]

1. d4 {[%clk 0:04:58.7]} 1... e5 {[%clk 0:04:58.8]} 2. dxe5 {[%clk 0:04:57.4]}
2... Nc6 {[%clk 0:04:58]} 3. Nf3 {[%clk 0:04:57]} 3... Qe7 {[%clk 0:04:57.2]} 4.
Bf4 {[%clk 0:04:56.4]} 4... Qb4+ {[%clk 0:04:56.5]} 5. Bd2 {[%clk 0:04:54.7]}
5... Qxb2 {[%clk 0:04:55.6]} 6. Nc3 {[%clk 0:04:54.1]} 6... Bb4 {[%clk
0:04:52.1]} 7. Rb1 {[%clk 0:04:52.5]} 7... Qa3 {[%clk 0:04:46.8]} 8. Rb3 {[%clk
0:04:51.7]} 8... Qa5 {[%clk 0:04:45.9]} 9. a3 {[%clk 0:04:51]} 9... Bxc3 {[%clk
0:04:44.8]} 10. Bxc3 {[%clk 0:04:46.3]} 10... Qc5 {[%clk 0:04:36.2]} 11. e3
{[%clk 0:04:32.7]} 11... d6 {[%clk 0:04:33.5]} 12. exd6 {[%clk 0:04:11.8]} 12...
Qxd6 {[%clk 0:04:30.9]} 13. Qxd6 {[%clk 0:04:09.1]} 13... cxd6 {[%clk
0:04:30.1]} 14. Bxg7 {[%clk 0:04:08.7]} 14... Be6 {[%clk 0:04:25.1]} 15. Bxh8
{[%clk 0:04:07.3]} 15... Bxb3 {[%clk 0:04:23.8]} 16. cxb3 {[%clk 0:04:05.7]}
16... Ne5 {[%clk 0:04:22.5]} 17. Nxe5 {[%clk 0:04:04.4]} 17... dxe5 {[%clk
0:04:21.8]} 18. Bxe5 {[%clk 0:04:03.7]} 18... Ne7 {[%clk 0:04:21.3]} 19. Bb5+
{[%clk 0:04:01.1]} 19... Nc6 {[%clk 0:04:19.2]} 20. Bxc6+ {[%clk 0:03:58.4]}
20... bxc6 {[%clk 0:04:18.3]} 21. O-O {[%clk 0:03:57.1]} 21... Rd8 {[%clk
0:04:16.9]} 22. Bd4 {[%clk 0:03:46.9]} 22... c5 {[%clk 0:04:15.3]} 23. Bxc5
{[%clk 0:03:42.6]} 23... Rd3 {[%clk 0:04:14.2]} 24. Rb1 {[%clk 0:03:38.8]} 24...
Rd2 {[%clk 0:04:10.8]} 25. Kf1 {[%clk 0:03:34.9]} 25... Kd7 {[%clk 0:04:05.9]}
26. Ke1 {[%clk 0:03:33]} 26... Rc2 {[%clk 0:04:03.3]} 27. Bd4 {[%clk 0:03:29.6]}
27... Kd6 {[%clk 0:03:59.4]} 1-0

[Event "Live Chess"]
[Site "Chess.com"]
[Date "2023.05.21"]
[Round "-"]
[White "Doge_Dandolo"]
[Black "friarnator"]
[Result "0-1"]
[WhiteElo "1912"]
[BlackElo "2023"]
[TimeControl "300"]
[EndTime "5:41:06 PDT"]
[Termination "friarnator won by resignation"]

1. Nf3 {[%clk 0:04:58]} 1... Nf6 {[%clk 0:04:59.1]} 2. c4 {[%clk 0:04:56.7]}
2... g6 {[%clk 0:04:56.9]} 3. Nc3 {[%clk 0:04:55.2]} 3... Bg7 {[%clk 0:04:56.2]}
4. e4 {[%clk 0:04:54.1]} 4... O-O {[%clk 0:04:55.8]} 5. d4 {[%clk 0:04:52.7]}
5... d6 {[%clk 0:04:55.2]} 6. Be2 {[%clk 0:04:51.6]} 6... e5 {[%clk 0:04:54.1]}
7. Be3 {[%clk 0:04:49.5]} 7... Nc6 {[%clk 0:04:52.2]} 8. h3 {[%clk 0:04:46.4]}
8... Re8 {[%clk 0:04:48.1]} 9. d5 {[%clk 0:04:45.4]} 9... Ne7 {[%clk 0:04:47]}
10. g4 {[%clk 0:04:41]} 10... a5 {[%clk 0:04:45.1]} 11. Qc2 {[%clk 0:04:36.5]}
11... Rf8 {[%clk 0:04:43.2]} 12. Rg1 {[%clk 0:04:35.3]} 12... Nd7 {[%clk
0:04:41.9]} 13. h4 {[%clk 0:04:30.6]} 13... Nc5 {[%clk 0:04:40.5]} 14. O-O-O
{[%clk 0:04:26.5]} 14... Kh8 {[%clk 0:04:33.3]} 15. h5 {[%clk 0:04:25]} 15... a4
{[%clk 0:04:26]} 16. hxg6 {[%clk 0:04:22.9]} 16... fxg6 {[%clk 0:04:22.4]} 17.
Rh1 {[%clk 0:04:21.1]} 17... Kg8 {[%clk 0:04:09.7]} 18. Rdg1 {[%clk 0:04:16.4]}
18... Rxf3 {[%clk 0:03:59.9]} 19. Bxf3 {[%clk 0:04:12.6]} 19... Qf8 {[%clk
0:03:55.2]} 20. Qe2 {[%clk 0:04:06.8]} 20... Bd7 {[%clk 0:03:51.8]} 21. Rg3
{[%clk 0:04:03.9]} 21... g5 {[%clk 0:03:42.8]} 22. Bxg5 {[%clk 0:03:55.4]} 22...
Ng6 {[%clk 0:03:41.8]} 23. Rgh3 {[%clk 0:03:50.4]} 23... Nf4 {[%clk 0:03:37.5]}
24. Bxf4 {[%clk 0:03:48.3]} 24... Qxf4+ {[%clk 0:03:37]} 25. Kc2 {[%clk
0:03:41.5]} 25... Rf8 {[%clk 0:03:28.9]} 26. Rxh7 {[%clk 0:03:27.6]} 26... Qxf3
{[%clk 0:03:26.1]} 27. Qxf3 {[%clk 0:03:23.1]} 27... Rxf3 {[%clk 0:03:26]} 28.
R1h2 {[%clk 0:03:21]} 28... Bxg4 {[%clk 0:03:20.9]} 29. R7h4 {[%clk 0:03:14.3]}
29... Bd7 {[%clk 0:03:13.4]} 30. Rg2 {[%clk 0:03:08.1]} 30... Rh3 {[%clk
0:03:07.6]} 31. Rh5 {[%clk 0:03:01.2]} 31... Rxh5 {[%clk 0:03:04.7]} 0-1

[Event "Live Chess"]
[Site "Chess.com"]
[Date "2023.05.21"]
[Round "-"]
[White "Berdgross"]
[Black "JoRoSaR"]
[Result "0-1"]
[WhiteElo "682"]
[BlackElo "1686"]
[TimeControl "300"]
[EndTime "5:41:11 PDT"]
[Termination "JoRoSaR won by resignation"]

1. e4 {[%clk 0:04:54.7]} 1... c5 {[%clk 0:04:59]} 2. d4 {[%clk 0:04:54.6]} 2...
cxd4 {[%clk 0:04:58]} 3. Qxd4 {[%clk 0:04:53.6]} 3... Nc6 {[%clk 0:04:57.1]} 4.
Qd1 {[%clk 0:04:51]} 4... g6 {[%clk 0:04:56.2]} 5. Bb5 {[%clk 0:04:50.1]} 5...
Bg7 {[%clk 0:04:55.5]} 6. Nf3 {[%clk 0:04:49.6]} 6... e6 {[%clk 0:04:54.6]} 7.
Nc3 {[%clk 0:04:47.6]} 7... Nge7 {[%clk 0:04:53.5]} 8. Bxc6 {[%clk 0:04:44.9]}
8... Nxc6 {[%clk 0:04:52]} 9. O-O {[%clk 0:04:42.5]} 9... O-O {[%clk 0:04:51]}
10. Na4 {[%clk 0:04:37.9]} 10... b6 {[%clk 0:04:48.9]} 11. Bd2 {[%clk
0:04:29.7]} 11... b5 {[%clk 0:04:45.3]} 12. Nc3 {[%clk 0:04:23.9]} 12... a6
{[%clk 0:04:44.7]} 13. a3 {[%clk 0:04:18.6]} 13... Bb7 {[%clk 0:04:44.2]} 14. b4
{[%clk 0:04:16.6]} 14... Nd4 {[%clk 0:04:42.8]} 15. Nxd4 {[%clk 0:04:14.7]}
15... Bxd4 {[%clk 0:04:42.7]} 16. Re1 {[%clk 0:04:01]} 16... Rc8 {[%clk
0:04:41.5]} 17. Ne2 {[%clk 0:03:48.2]} 17... Bxa1 {[%clk 0:04:33.1]} 18. Qxa1
{[%clk 0:03:47]} 18... Rxc2 {[%clk 0:04:31.6]} 19. Bc3 {[%clk 0:03:40.4]} 19...
f6 {[%clk 0:04:19.3]} 20. e5 {[%clk 0:03:35.2]} 20... f5 {[%clk 0:04:16]} 21. g4
{[%clk 0:03:30.7]} 21... Qc7 {[%clk 0:04:12.9]} 22. Nd4 {[%clk 0:03:25.9]} 22...
Rxc3 {[%clk 0:04:08.5]} 0-1

[Event "Live Chess"]
[Site "Chess.com"]
[Date "2023.05.21"]
[Round "-"]
[White "AbilifyXL"]
[Black "Brooms1989"]
[Result "1-0"]
[WhiteElo "1968"]
[BlackElo "1165"]
[TimeControl "300"]
[EndTime "5:41:21 PDT"]
[Termination "AbilifyXL won by resignation"]

1. d4 {[%clk 0:04:58.1]} 1... Nf6 {[%clk 0:04:50.3]} 2. c4 {[%clk 0:04:57]} 2...
g6 {[%clk 0:04:49.4]} 3. Nc3 {[%clk 0:04:56.1]} 3... Bg7 {[%clk 0:04:48.9]} 4.
e4 {[%clk 0:04:55.3]} 4... d6 {[%clk 0:04:48.5]} 5. Be2 {[%clk 0:04:54.6]} 5...
O-O {[%clk 0:04:44.7]} 6. Bg5 {[%clk 0:04:53.8]} 6... h6 {[%clk 0:04:42.9]} 7.
Be3 {[%clk 0:04:52.8]} 7... Nbd7 {[%clk 0:04:38]} 8. Qd2 {[%clk 0:04:42.3]} 8...
e5 {[%clk 0:04:35.8]} 9. dxe5 {[%clk 0:04:35.5]} 9... Nxe5 {[%clk 0:04:35.7]}
10. Bxh6 {[%clk 0:04:34.6]} 10... Be6 {[%clk 0:04:12.6]} 11. Bxg7 {[%clk
0:04:30.5]} 11... Kxg7 {[%clk 0:04:12.5]} 12. b3 {[%clk 0:04:28.2]} 12... Nfd7
{[%clk 0:03:32.9]} 13. h3 {[%clk 0:04:19.4]} 13... Rh8 {[%clk 0:03:25.9]} 14. f4
{[%clk 0:04:07.6]} 14... Nc6 {[%clk 0:03:19]} 15. Nf3 {[%clk 0:04:06.2]} 15...
Nb6 {[%clk 0:03:09.1]} 16. Nd4 {[%clk 0:03:58.3]} 16... Nxd4 {[%clk 0:03:05.1]}
17. Qxd4+ {[%clk 0:03:57.1]} 17... Kg8 {[%clk 0:03:04.2]} 18. O-O {[%clk
0:03:55.5]} 18... Bxh3 {[%clk 0:02:56.9]} 19. Bf3 {[%clk 0:03:20.2]} 19... Bxg2
{[%clk 0:02:49.2]} 20. Bxg2 {[%clk 0:03:18.8]} 20... Qh4 {[%clk 0:02:48.7]} 21.
Qe3 {[%clk 0:02:59.6]} 21... Re8 {[%clk 0:02:36.5]} 22. Rae1 {[%clk 0:02:56.1]}
22... Qh2+ {[%clk 0:02:25.4]} 23. Kf2 {[%clk 0:02:54.8]} 23... Qh4+ {[%clk
0:02:20.5]} 24. Qg3 {[%clk 0:02:53.3]} 24... Qf6 {[%clk 0:02:14.7]} 25. Nd5
{[%clk 0:02:49.5]} 25... Nxd5 {[%clk 0:02:13]} 26. cxd5 {[%clk 0:02:45.5]} 26...
Qb2+ {[%clk 0:02:09.1]} 27. Re2 {[%clk 0:02:44.4]} 27... Qd4+ {[%clk 0:02:05.1]}
28. Qe3 {[%clk 0:02:43.1]} 28... Qf6 {[%clk 0:01:49.9]} 29. Kg1 {[%clk
0:02:41.2]} 29... Qh4 {[%clk 0:01:47.8]} 30. Rfe1 {[%clk 0:02:24.2]} 30... Qh2+
{[%clk 0:01:41.8]} 31. Kf2 {[%clk 0:02:23.1]} 31... Qh4+ {[%clk 0:01:40.1]} 32.
Qg3 {[%clk 0:02:22]} 32... Qf6 {[%clk 0:01:27.7]} 33. Qf3 {[%clk 0:02:12.7]}
33... Qh4+ {[%clk 0:01:25.3]} 34. Qg3 {[%clk 0:02:11.3]} 34... Qf6 {[%clk
0:01:24.2]} 35. Rh1 {[%clk 0:02:09]} 35... Qd4+ {[%clk 0:01:20.3]} 36. Qe3
{[%clk 0:02:06.1]} 36... Qxe3+ {[%clk 0:01:11.7]} 37. Rxe3 {[%clk 0:02:00.8]}
37... Rxh1 {[%clk 0:01:09.9]} 38. Bxh1 {[%clk 0:02:00.2]} 38... Kg7 {[%clk
0:01:07]} 39. e5 {[%clk 0:01:58.8]} 39... dxe5 {[%clk 0:01:05.8]} 40. fxe5
{[%clk 0:01:58]} 40... Kh6 {[%clk 0:00:59.8]} 41. d6 {[%clk 0:01:53.3]} 41...
cxd6 {[%clk 0:00:57.8]} 42. exd6 {[%clk 0:01:52.2]} 42... Rd8 {[%clk 0:00:57.2]}
43. Rd3 {[%clk 0:01:48.5]} 43... b6 {[%clk 0:00:52.3]} 44. d7 {[%clk 0:01:45.2]}
44... Kg7 {[%clk 0:00:51.2]} 45. Bc6 {[%clk 0:01:44]} 45... Kf6 {[%clk
0:00:50.3]} 46. Re3 {[%clk 0:01:43.2]} 46... Kg7 {[%clk 0:00:46.5]} 47. Re8
{[%clk 0:01:41.4]} 47... Rxe8 {[%clk 0:00:45.7]} 48. dxe8=Q {[%clk 0:01:40.6]}
48... Kf6 {[%clk 0:00:45.6]} 1-0

[Event "Live Chess"]
[Site "Chess.com"]
[Date "2023.05.21"]
[Round "-"]
[White "YrrriKharkiv"]
[Black "MJMykh"]
[Result "1-0"]
[WhiteElo "2072"]
[BlackElo "1152"]
[TimeControl "300"]
[EndTime "5:41:25 PDT"]
[Termination "YrrriKharkiv won by resignation"]

1. d4 {[%clk 0:04:56.1]} 1... d5 {[%clk 0:04:58.7]} 2. Nf3 {[%clk 0:04:55.9]}
2... Nc6 {[%clk 0:04:57.6]} 3. c4 {[%clk 0:04:55.6]} 3... dxc4 {[%clk
0:04:55.7]} 4. Nc3 {[%clk 0:04:53.5]} 4... Nf6 {[%clk 0:04:55.3]} 5. d5 {[%clk
0:04:52.1]} 5... Nb8 {[%clk 0:04:52.3]} 6. e4 {[%clk 0:04:50.5]} 6... e6 {[%clk
0:04:51.2]} 7. Bxc4 {[%clk 0:04:47.9]} 7... exd5 {[%clk 0:04:50]} 8. exd5 {[%clk
0:04:47.7]} 8... Bb4 {[%clk 0:04:48.7]} 9. Qa4+ {[%clk 0:04:45]} 9... b5 {[%clk
0:04:45.9]} 10. Qxb5+ {[%clk 0:04:38.5]} 10... c6 {[%clk 0:04:44.9]} 11. Qxb4
{[%clk 0:04:37.6]} 1-0